[Event "European Women Blitz-ch 2024"]
[Site "Monaco"]
[Date "2025.01.10"]
[Round "2.2"]
[White "Vega Gutierrez, Sabrina"]
[Black "Stefanova, Antoaneta"]
[Result "0-1"]
[Annotator "TA"]
[ECO "C26"]
[WhiteElo "2393"]
[BlackElo "2418"]
[PlyCount "135"]
[EventDate "2025.01.06"]
[EventType "swiss"]
[EventCountry "MNC"]
[SourceTitle "playchess.com"]
[Source "ChessBase"]
[SourceQuality "1"]
[TimeControl "180+2"]

{[%evp 71,135,0,64,22,41,22,83,81,126,20,14,0,359,358,366,365,769,743,812,821,1073,768,493,123,122,103,106,108,117,0,347,-140,29983,0,0,0,0,0,0,0,0,0,0,0,0,0,0,0,0,0,0,0,0,0,0,0,0,0,0,0,0,0,0,0,0,0]} 1. e4 {[%emt 0:00:01]} e5 {[%emt 0:00:01]} 2. Nf3 {[%emt 0:00:02]} Nc6 {[%emt 0:00:00]} 3. Nc3 {[%emt 0:00:01]} Nf6 {[%emt 0:00:01]} 4. g3 {[%emt 0:00:01]} Bc5 {[%emt 0:00:16]} 5. Bg2 {[%emt 0:00:03]} d6 {[%emt 0:00:08]} 6. d3 {[%emt 0:00:01]} a6 {[%emt 0:00:05]} 7. O-O {[%emt 0:00:04]} h6 {[%emt 0:00:28]} 8. h3 {[%emt 0:00:01]} Be6 {[%emt 0:00:04]} 9. Kh2 {[%emt 0:00:05]} g5 {[%emt 0:00:20]} 10. Nd2 {[%emt 0:00:01]} Ne7 {[%emt 0:00:13]} 11. Nb3 {[%emt 0:00:12]} Ba7 {[%emt 0:00:01]} 12. Be3 {[%emt 0:01:17]} Ng6 {[%emt 0:00:03]} 13. Bxa7 {[%emt 0:00:12]} Rxa7 {[%emt 0:00:00]} 14. d4 {[%emt 0:00:02]} Ra8 {[%emt 0:00:04]} 15. Qd2 {[%emt 0:00:12]} Qe7 {[%emt 0:00:11]} 16. Rad1 {[%emt 0:00:11]} O-O {[%emt 0:00:04]} 17. dxe5 {[%emt 0:00:23]} dxe5 {[%emt 0:00:03]} 18. Qe3 {[%emt 0:00:05]} Rad8 {[%emt 0:00:24]} 19. Nc5 {[%emt 0:00:04]} Bc8 {[%emt 0:00:02]} 20. Kg1 {[%emt 0:00:22]} Rxd1 {[%emt 0:00:08]} 21. Rxd1 {[%emt 0:00:01]} Rd8 {[%emt 0:00:01]} 22. Rxd8+ {[%emt 0:00:03]} Qxd8 {[%emt 0:00:00]} 23. Qd3 {[%emt 0:00:05]} Qe7 {[%emt 0:00:11]} 24. Qc4 {[%emt 0:00:02]} b5 {[%emt 0:00:09]} 25. Nxb5 {[%emt 0:00:17]} axb5 {[%emt 0:00:02]} 26. Qxb5 {[%emt 0:00:01]} Kg7 {[%emt 0:00:55]} 27. b4 {[%emt 0:00:01]} Qd6 {[%emt 0:00:00]} 28. a4 {[%emt 0:00:02]} Qb6 {[%emt 0:00:00]} 29. Qc4 {[%emt 0:00:02]} Ne8 {[%emt 0:00:00]} 30. a5 {[%emt 0:00:03]} Qa7 {[%emt 0:00:00]} 31. Bf1 {[%emt 0:00:04]} Nd6 {[%emt 0:00:00]} 32. Qc3 {[%emt 0:00:01]} Qb8 {[%emt 0:00:00]} 33. h4 {[%emt 0:00:02]} gxh4 {[%emt 0:00:00]} 34. f4 {[%emt 0:00:01]} f6 {[%emt 0:00:00]} 35. f5 {[%emt 0:00:02]} Nf8 {[%emt 0:00:00]} 36. gxh4 {[%emt 0:00:01]} Qa8 {[%emt 0:00:04]} (36... Kf7 $11) 37. Qg3+ {[%emt 0:00:02]} (37. a6 {is interesting.} Qa7 38. Qg3+ Kf7 39. Kh1) 37... Kh8 {[%emt 0:00:03]} 38. Bd3 {[%emt 0:00:02]} Qc6 {[%emt 0:00:02]} (38... Bd7 $11 {keeps the balance.}) 39. Qe3 {[%emt 0:00:04]} Kh7 {[%emt 0:00:02] [#]} 40. c4 {[%emt 0:00:03]} (40. Kh2 $1 $16) 40... Qe8 $1 $11 {[%emt 0:00:01]} 41. b5 {[%emt 0:00:01]} Nd7 $2 {[%emt 0:00:04][%mdl 8192]} (41... Qf7 $11) 42. Ne6 $18 {[%emt 0:00:01]} Nf8 {[%emt 0:00:01]} 43. Nxc7 {[%emt 0:00:02]} Qe7 $2 {[%emt 0:00:02]} (43... Qd8) 44. Nd5 $18 {[%emt 0:00:01]} Qg7+ {[%emt 0:00:00]} 45. Kh2 {[%emt 0:00:02]} Nd7 {[%emt 0:00:02]} 46. a6 {[%emt 0:00:02]} Qg4 {[%emt 0:00:07]} 47. Qg3 $2 {[%emt 0:00:08]} (47. c5 $18 {and the rest is easy.} Qxh4+ 48. Kg2 Qg4+ 49. Kf1 Qd1+ 50. Kf2 Nxc5 51. Qxc5 Qd2+ 52. Kg1) 47... Qxg3+ $16 {[%emt 0:00:06]} 48. Kxg3 {[%emt 0:00:00]} Nc5 {[%emt 0:00:01]} 49. Bc2 {[%emt 0:00:00]} ({Worse is} 49. Nxf6+ Kg7 50. Nh5+ Kf8 $15) 49... Nxc4 {[%emt 0:00:02]} 50. Ne7 {[%emt 0:00:00]} (50. Nxf6+ $16 Kg7 51. Ne8+ Kf7 52. Nc7) 50... Bd7 $2 {[%emt 0:00:02][%mdl 8192]} (50... Nd6 $11 {and Black stays safe.}) 51. Nd5 $2 {[%emt 0:00:03]} (51. a7 $18 Nb6 52. Nd5) 51... Kg7 $2 {[%emt 0:00:02][%mdl 8192]} (51... Bxb5 $17 52. Nxf6+ Kg7) 52. b6 $2 {[%emt 0:00:02]} (52. a7 {mates} Nd2 53. a8=Q (53. a8=B Bxb5 54. Nc7 Bc4 $11) 53... Ndxe4+ 54. Bxe4 Bxb5 55. Bc2 (55. Qa7+ Nd7 56. Nc7 Kh8 57. Nxb5 Nc5 58. Qxc5 Kg8 59. Bd5+ Kh7 60. Qa7+ Kh8 61. Qa8+ Kh7 62. Qg8#) 55... Nd7 56. Ne7 Nf8 57. Qd5) 52... Nxa6 $11 {[%emt 0:00:01]} 53. Bd3 $1 {[%emt 0:00:02]} Nxb6 {[%emt 0:00:07]} 54. Nxb6 {[%emt 0:00:01]} Nc5 {[%emt 0:00:02]} 55. Nxd7 {[%emt 0:00:04]} Nxd3 {[%emt 0:00:01]} 56. Kf3 {[%emt 0:00:02]} Kf7 {[%emt 0:00:01]} 57. Nb6 {[%emt 0:00:02]} Nf4 {[%emt 0:00:03]} 58. Ke3 {[%emt 0:00:03]} Ke7 {[%emt 0:00:03]} 59. Kf3 {[%emt 0:00:00]} Kf7 {[%emt 0:00:01]} 60. Nc4 $1 {[%emt 0:00:02]} Ke7 {[%emt 0:00:01]} 61. Ne3 {[%emt 0:00:01]} Kf7 {[%emt 0:00:01]} 62. Ng4 {[%emt 0:00:02]} Kg7 {[%emt 0:00:01]} 63. Kg3 {[%emt 0:00:03]} Ne2+ {[%emt 0:00:01]} 64. Kf3 {[%emt 0:00:01]} Nf4 {[%emt 0:00:01]} 65. Nf2 {[%emt 0:00:02]} Kf7 {[%emt 0:00:02]} 66. Ng4 {[%emt 0:00:02]} h5 {[%emt 0:00:02]} 67. Ne3 {[%emt 0:00:01]} Ke7 {[%emt 0:00:01]} 68. Nc4 {[%emt 0:00:09]} 0-1

[Event "European Women Blitz-ch 2024"]
[Site "Monaco"]
[Date "2025.01.10"]
[Round "2.3"]
[White "Matnadze Bujiashvili, Ann"]
[Black "Guichard, Pauline"]
[Result "1/2-1/2"]
[Annotator "TA"]
[ECO "E01"]
[WhiteElo "2315"]
[BlackElo "2357"]
[PlyCount "203"]
[EventDate "2025.01.06"]
[EventType "swiss"]
[EventCountry "MNC"]
[SourceTitle "playchess.com"]
[Source "ChessBase"]
[SourceQuality "1"]
[TimeControl "180+2"]

{[%evp 63,203,364,421,405,498,339,358,356,332,299,287,283,306,131,311,272,289,302,310,267,282,0,295,289,298,287,315,293,307,271,275,273,296,232,235,247,236,223,231,227,221,213,220,212,272,249,241,241,277,280,258,0,258,125,183,0,249,223,312,311,299,228,312,318,300,0,212,109,249,0,191,110,110,110,110,103,110,103,103,103,103,97,97,97,97,97,97,97,102,97,97,10,10,0,97,97,97,97,97,97,97,97,97,97,97,97,97,97,97,97,97,97,97,97,97,97,97,64,64,0,0,0,0,0,0,0,0,0,0,0,0,0,0,0,0,0,0,0,0,0,0,0]} 1. d4 {[%emt 0:00:02]} Nf6 {[%emt 0:00:01]} 2. Nf3 {[%emt 0:00:01]} d5 {[%emt 0:00:02]} 3. g3 {[%emt 0:00:01]} e6 {[%emt 0:00:02]} 4. Bg2 {[%emt 0:00:01]} c5 {[%emt 0:00:02]} 5. c4 {[%emt 0:00:02]} cxd4 {[%emt 0:00:14]} 6. Nxd4 {[%emt 0:00:05]} Bb4+ {[%emt 0:00:11]} 7. Bd2 {[%emt 0:00:03]} Bxd2+ {[%emt 0:00:02]} 8. Nxd2 {[%emt 0:00:02]} O-O {[%emt 0:00:02]} 9. O-O {[%emt 0:00:07]} e5 {[%emt 0:00:09]} 10. N4b3 {[%emt 0:00:05]} Nc6 {[%emt 0:00:13]} 11. cxd5 {[%emt 0:00:02]} Nxd5 {[%emt 0:00:02]} 12. Nc4 {[%emt 0:00:03]} Nb6 {[%emt 0:00:20]} 13. Nd6 {[%emt 0:00:16]} Qe7 {[%emt 0:00:17]} 14. Nxc8 {[%emt 0:00:17]} Raxc8 {[%emt 0:00:04]} 15. e3 {[%emt 0:00:04]} Rfd8 {[%emt 0:00:17]} 16. Qe2 {[%emt 0:00:00]} Nb4 {[%emt 0:00:08]} 17. Be4 {[%emt 0:01:05]} g6 {[%emt 0:00:24]} 18. a3 {[%emt 0:00:06]} N4d5 {[%emt 0:00:09]} 19. Rac1 {[%emt 0:00:15]} Nf6 {[%emt 0:00:12]} 20. Bg2 {[%emt 0:00:04]} e4 {[%emt 0:00:06]} 21. Nd4 {[%emt 0:00:05]} Rc5 {[%emt 0:00:06]} 22. b4 {[%emt 0:00:05]} Rcc8 {[%emt 0:00:11]} 23. h3 {[%emt 0:00:06]} Qe5 {[%emt 0:00:05]} 24. Qb5 {[%emt 0:00:14]} Qxb5 {[%emt 0:00:16]} 25. Nxb5 {[%emt 0:00:01]} Rxc1 {[%emt 0:00:06]} 26. Rxc1 {[%emt 0:00:01]} a6 {[%emt 0:00:01]} 27. Nd4 {[%emt 0:00:02]} Nbd5 {[%emt 0:00:05]} 28. Nb3 {[%emt 0:00:01]} Kg7 {[%emt 0:00:04]} 29. Nc5 {[%emt 0:00:01]} Rb8 {[%emt 0:00:06]} 30. Nxe4 {[%emt 0:00:03]} Nb6 {[%emt 0:00:01]} 31. Nc5 {[%emt 0:00:05]} Nbd5 {[%emt 0:00:03]} 32. Rd1 {[%emt 0:00:01]} Nc3 {[%emt 0:00:01]} 33. Rd3 {[%emt 0:00:06]} Nb5 {[%emt 0:00:02]} 34. Nxb7 {[%emt 0:00:03]} Rc8 {[%emt 0:00:03]} 35. Nc5 {[%emt 0:00:01]} a5 {[%emt 0:00:01]} 36. Bf1 {[%emt 0:00:03]} axb4 {[%emt 0:00:01]} 37. axb4 {[%emt 0:00:01]} Na7 {[%emt 0:00:01]} 38. Rc3 {[%emt 0:00:05]} (38. e4 $18) 38... Rb8 $2 {[%emt 0:00:01]} (38... Nd5 $16 39. Ra3 Nxb4 40. Ne6+ Kf6) 39. Rb3 {[%emt 0:00:02]} Nd5 {[%emt 0:00:01]} 40. b5 {[%emt 0:00:01]} Nb6 {[%emt 0:00:01]} 41. Bg2 {[%emt 0:00:02]} Nbc8 {[%emt 0:00:05]} 42. Bf1 {[%emt 0:00:04]} Nb6 $1 {[%emt 0:00:04]} 43. Ra3 {[%emt 0:00:02]} Nac8 {[%emt 0:00:02]} 44. Na6 {[%emt 0:00:02]} Ra8 {[%emt 0:00:01]} 45. Rd3 {[%emt 0:00:02]} Kf6 {[%emt 0:00:01]} 46. Bg2 {[%emt 0:00:02]} Ra7 {[%emt 0:00:01]} 47. Rc3 {[%emt 0:00:01]} Rd7 {[%emt 0:00:02]} 48. Bc6 {[%emt 0:00:04]} Rd1+ {[%emt 0:00:01]} 49. Kg2 {[%emt 0:00:00]} Rb1 {[%emt 0:00:01]} 50. Rd3 {[%emt 0:00:03]} Ke7 {[%emt 0:00:02]} 51. Nc7 {[%emt 0:00:01]} Nd6 {[%emt 0:00:02]} 52. Nd5+ {[%emt 0:00:02]} Nxd5 {[%emt 0:00:01]} 53. Rxd5 {[%emt 0:00:00]} f5 {[%emt 0:00:02]} 54. Re5+ {[%emt 0:00:03]} Kf6 {[%emt 0:00:01]} 55. Rc5 {[%emt 0:00:01]} Ke6 {[%emt 0:00:03]} 56. Bd5+ {[%emt 0:00:02]} Kd7 {[%emt 0:00:01]} 57. Bc6+ {[%emt 0:00:01]} Ke6 $1 {[%emt 0:00:01]} 58. Rc2 {[%emt 0:00:01]} (58. f4 $18 {and White stays clearly on top.}) 58... Rb4 {[%emt 0:00:05] [#]} (58... Nxb5 $16 59. Rc5 Nd6 60. Bd5+ Kf6) 59. Rc5 $2 {[%emt 0:00:05]} ({White should try} 59. Rd2 $1 $18) 59... Rb2 $2 {[%emt 0:00:02]} (59... Rb1 $1 $11 {and Black has nothing to worry.} 60. g4 Rb2 61. gxf5+ Nxf5) 60. Kf1 {[%emt 0:00:03]} h5 {[%emt 0:00:02]} 61. h4 {[%emt 0:00:00]} Ke7 {[%emt 0:00:05]} 62. Kg2 {[%emt 0:00:02]} Ke6 {[%emt 0:00:01]} 63. Bd5+ {[%emt 0:00:02]} Kd7 {[%emt 0:00:02]} 64. Bc6+ {[%emt 0:00:03]} Ke6 $1 {[%emt 0:00:00]} 65. Rc1 {[%emt 0:00:01]} (65. Kg1 $18) 65... Ke5 {[%emt 0:00:03]} (65... Kf6 $16 66. Rc5 Nf7) 66. Rc5+ {[%emt 0:00:05]} Ke6 $1 {[%emt 0:00:01]} 67. Bf3 {[%emt 0:00:06]} (67. Kg1 $18) 67... Rxb5 $16 {[%emt 0:00:04]} 68. Rxb5 {[%emt 0:00:03]} Nxb5 {[%emt 0:00:00]} 69. Be2 {[%emt 0:00:01]} Nd6 {[%emt 0:00:01]} 70. Bd1 {[%emt 0:00:01]} Ne4 {[%emt 0:00:01]} 71. Bb3+ {[%emt 0:00:01]} Kf6 {[%emt 0:00:01]} 72. f3 {[%emt 0:00:00]} Nc5 {[%emt 0:00:02]} 73. Ba2 {[%emt 0:00:00]} Nd3 {[%emt 0:00:01]} 74. Kf1 {[%emt 0:00:00]} Ne5 {[%emt 0:00:02]} 75. Ke2 {[%emt 0:00:00]} Ke7 {[%emt 0:00:01]} 76. f4 {[%emt 0:00:00]} Nd7 {[%emt 0:00:01]} 77. Kd3 {[%emt 0:00:00]} (77. Kf3 $16) 77... Nc5+ $11 {[%emt 0:00:02]} 78. Ke2 {[%emt 0:00:00]} Ne4 {[%emt 0:00:01]} (78... Nd7 $1 $11) 79. Kf3 $16 {[%emt 0:00:00]} Nd2+ {[%emt 0:00:01]} 80. Kg2 {[%emt 0:00:00]} Ne4 {[%emt 0:00:01]} 81. Bd5 {[%emt 0:00:00]} Nd6 {[%emt 0:00:06]} 82. Kf3 {[%emt 0:00:00]} Kf6 {[%emt 0:00:01]} 83. Ke2 {[%emt 0:00:00]} Nb5 {[%emt 0:00:01]} 84. Kd3 {[%emt 0:00:00]} Nd6 {[%emt 0:00:02]} 85. Bc6 {[%emt 0:00:00]} Nf7 {[%emt 0:00:06]} 86. Kd4 {[%emt 0:00:00]} Nh6 {[%emt 0:00:01]} 87. Bf3 {[%emt 0:00:00]} Nf7 {[%emt 0:00:05]} 88. Kc5 {[%emt 0:00:00]} Nh6 {[%emt 0:00:02]} 89. Kd5 {[%emt 0:00:00]} Nf7 {[%emt 0:00:01]} 90. e4 {[%emt 0:00:01]} fxe4 {[%emt 0:00:01]} 91. Bxe4 {[%emt 0:00:01]} (91. Kxe4 $14 Nd6+ 92. Ke3) 91... Nh6 $11 {[%emt 0:00:01]} 92. Kd6 {[%emt 0:00:14]} Ng4 {[%emt 0:00:02]} 93. Kd5 {[%emt 0:00:12]} Ne3+ {[%emt 0:00:02]} 94. Kd4 {[%emt 0:00:02]} Nf1 {[%emt 0:00:01]} 95. Bd3 {[%emt 0:00:04]} Nxg3 {[%emt 0:00:01]} 96. Ke3 {[%emt 0:00:02]} Nf5+ {[%emt 0:00:05]} 97. Bxf5 {[%emt 0:00:02]} Kxf5 {[%emt 0:00:02]} 98. Kf3 {[%emt 0:00:01]} Kf6 {[%emt 0:00:01]} 99. Ke4 {[%emt 0:00:03]} Ke6 {[%emt 0:00:01]} 100. Ke3 {[%emt 0:00:02]} Kf5 {[%emt 0:00:03]} 101. Kf3 {[%emt 0:00:01]} Kf6 {[%emt 0:00:05]} 102. Ke4 {[%emt 0:00:47]} 1/2-1/2

[Event "European Women Blitz-ch 2024"]
[Site "Monaco"]
[Date "2025.01.10"]
[Round "2.4"]
[White "Savina, Anastasia"]
[Black "Arabidze, Meri"]
[Result "0-1"]
[Annotator "TA"]
[ECO "D25"]
[WhiteElo "2318"]
[BlackElo "2457"]
[PlyCount "123"]
[EventDate "2025.01.06"]
[EventType "swiss"]
[EventCountry "MNC"]
[SourceTitle "playchess.com"]
[Source "ChessBase"]
[SourceQuality "1"]
[TimeControl "180+2"]

{[%evp 65,123,-275,-296,-369,-272,-363,-363,-826,-814,-833,-804,-1342,-1256,-1897,-1224,-1030,-406,-391,-350,-6006,-6006,-1788,-1098,-2025,-2096,-2662,-2122,-2382,-1465,-2585,-2418,-12795,-47,-29951,0,-9432,-47,-6099,-143,-86,-8,-29971,-29967,-29974,-29975,-29975,-29975,-29980,-29979,-29980,0,-29981,-29982,-29982,-29983,-29983,-29982,-29983,-29984,-29984]} 1. d4 {[%emt 0:00:03]} d5 {[%emt 0:00:00]} 2. c4 {[%emt 0:00:02]} dxc4 {[%emt 0:00:01]} 3. e3 {[%emt 0:00:03]} Be6 {[%emt 0:00:04]} 4. Nf3 {[%emt 0:00:09]} Nf6 {[%emt 0:00:00]} 5. Ng5 {[%emt 0:00:13]} Bg4 {[%emt 0:00:14]} 6. Qa4+ {[%emt 0:00:14]} Nbd7 {[%emt 0:00:14]} 7. Bxc4 {[%emt 0:00:10]} e6 {[%emt 0:00:01]} 8. Nc3 {[%emt 0:00:31]} h6 {[%emt 0:00:08]} 9. Nf3 {[%emt 0:00:10]} a6 {[%emt 0:00:15]} 10. Qc2 {[%emt 0:00:35]} Bxf3 {[%emt 0:00:01]} 11. gxf3 {[%emt 0:00:01]} c5 {[%emt 0:00:00]} 12. d5 {[%emt 0:00:10]} Ne5 {[%emt 0:00:05]} 13. Be2 {[%emt 0:00:40]} Nxd5 {[%emt 0:00:03]} 14. Bd2 {[%emt 0:00:04]} Nb4 {[%emt 0:00:09]} 15. Qe4 {[%emt 0:00:07]} Ned3+ {[%emt 0:01:01]} 16. Bxd3 {[%emt 0:00:01]} Qxd3 {[%emt 0:00:11]} 17. O-O-O {[%emt 0:00:17]} Qxe4 {[%emt 0:00:07]} 18. Nxe4 {[%emt 0:00:03]} Nxa2+ {[%emt 0:00:13]} 19. Kb1 {[%emt 0:00:01]} Nb4 {[%emt 0:00:00]} 20. Bxb4 {[%emt 0:00:03]} cxb4 {[%emt 0:00:02]} 21. Rd4 {[%emt 0:00:04]} Be7 {[%emt 0:00:15]} 22. Rhd1 {[%emt 0:00:01]} f5 {[%emt 0:00:10]} 23. Nd2 {[%emt 0:00:02]} Rd8 {[%emt 0:00:15]} 24. Nc4 {[%emt 0:00:01]} Rxd4 {[%emt 0:00:02]} 25. Rxd4 {[%emt 0:00:01]} Bc5 {[%emt 0:00:13]} 26. Rd3 {[%emt 0:00:02]} Ke7 {[%emt 0:00:03]} 27. Na5 {[%emt 0:00:02]} b6 {[%emt 0:00:03]} 28. Nc6+ {[%emt 0:00:01]} Kf6 {[%emt 0:00:01]} 29. f4 {[%emt 0:00:03]} g5 {[%emt 0:00:01]} 30. Ne5 {[%emt 0:00:02]} Rh7 {[%emt 0:00:03]} 31. Nd7+ {[%emt 0:00:03]} Kg6 {[%emt 0:00:01]} 32. Ne5+ {[%emt 0:00:02]} Kh5 {[%emt 0:00:02]} 33. fxg5 {[%emt 0:00:03]} hxg5 {[%emt 0:00:01]} 34. Rd8 {[%emt 0:00:03]} Kh4 {[%emt 0:00:02]} 35. Rg8 {[%emt 0:00:02]} g4 {[%emt 0:00:02]} 36. Ng6+ $2 {[%emt 0:00:02]} (36. Rg6) 36... Kh3 $19 {[%emt 0:00:01]} 37. Nf4+ {[%emt 0:00:02]} Kxh2 {[%emt 0:00:00]} 38. Nxe6 {[%emt 0:00:01]} Kg2 {[%emt 0:00:02]} 39. Rg5 {[%emt 0:00:03]} Rf7 {[%emt 0:00:03]} 40. e4 {[%emt 0:00:01]} fxe4 {[%emt 0:00:02]} (40... Be7 $142 41. Rg6 fxe4 (41... Kxf2 $2 42. exf5 g3 43. Nf4 $19) 42. Rxg4+ Kf3 (42... Kxf2 43. Rxe4 a5 44. b3 $17)) 41. Rxg4+ $19 {[%emt 0:00:01]} Kf3 {[%emt 0:00:02]} (41... Kxf2 42. Nxc5 bxc5 43. Rxe4 $17) 42. Rg8 $2 {[%emt 0:00:02]} (42. Rxe4 Kxe4 43. Ng5+ Kf5 44. Nxf7) 42... Kxf2 $19 {[%emt 0:00:01]} (42... Bxf2 43. Ng5+ Ke2 44. Nxf7 $18) 43. Ng5 {[%emt 0:00:02]} Rf4 {[%emt 0:00:02]} 44. Nh3+ {[%emt 0:00:01]} Kf3 {[%emt 0:00:01]} 45. Nxf4 {[%emt 0:00:02]} Kxf4 {[%emt 0:00:01]} 46. Kc2 {[%emt 0:00:01]} Kf3 {[%emt 0:00:05]} 47. Re8 {[%emt 0:00:02]} a5 {[%emt 0:00:01]} 48. b3 {[%emt 0:00:03]} Bd4 $2 {[%emt 0:00:07]} (48... b5 $19 {( -> ...Bd6)} 49. Re5 Bd6) 49. Re6 $2 {[%emt 0:00:02][%mdl 8192]} (49. Rf8+ $15 Ke3 50. Rf5) 49... Bc5 {[%emt 0:00:04]} (49... Bc3 $142 50. Re7 b5 51. Rf7+ Ke2 52. Ra7 e3 53. Rh7 Be1 54. Ra7 Bg3 55. Rxa5 Kf3 56. Kd3 e2 57. Ra1 e1=Q (57... e1=B 58. Ra5 $15) (57... e1=R $2 58. Ra8 $19) 58. Rxe1 Bxe1 59. Kd4 Ke2 60. Ke4 Kd2 61. Kf3 Kc2 (61... Kd3 62. Kf4 Kc2 63. Ke4 Kxb3 64. Kd4 Ka4 65. Ke3 b3 66. Ke2 b2 67. Kxe1 b1=Q+ 68. Ke2 Qe4+ 69. Kf2 Qf4+ 70. Kg1 b4 71. Kg2 b3 72. Kh1 b2 73. Kg2 b1=Q 74. Kh3 Qh1#) 62. Ke4 Kxb3 63. Kd4 Ka3 64. Ke3 b3 65. Ke2 b2 66. Kxe1 b1=Q+ (66... b1=R+ 67. Ke2 Rb3 68. Kf2 b4 69. Kg2 Rc3 70. Kf2 b3 71. Ke2 b2 72. Kd2 Kb4 73. Kd1 b1=Q+ 74. Ke2 Qb2+ 75. Kf1 Rc1#) 67. Kf2 Qd3 68. Kg2 b4 69. Kh2 b3 70. Kg2 b2 71. Kh2 b1=Q (71... b1=R $2 72. Kg2 Rb2+ 73. Kh1 Qf1#) 72. Kg2 Qbf1+ 73. Kh2 Qdh3#) 50. Re8 $1 $19 {[%emt 0:00:03]} Ke3 $2 {[%emt 0:00:01]} ({Better is} 50... Bf2 $19 51. Re6 b5) 51. Re6 $2 {[%emt 0:00:02][%mdl 8192]} (51. Rh8 $15) 51... Kd4 $2 {[%emt 0:00:01]} (51... a4 $19 {is more deadly. ( -> ...a3)} 52. bxa4 Kd4) 52. Re8 $17 {[%emt 0:00:01]} b5 {[%emt 0:00:03]} (52... e3 $17 {[%cal Oa5a4] And now ...a4! would win.} 53. Rh8 Be7 (53... e2 54. Re8 $14)) 53. Rb8 $2 {[%emt 0:00:02][%mdl 8192]} (53. Rd8+ $11 Ke5 54. Ra8) 53... a4 {[%emt 0:00:02]} 54. Rxb5 {[%emt 0:00:04]} a3 {[%emt 0:00:01]} 55. Ra5 {[%emt 0:00:01]} e3 {[%emt 0:00:01]} 56. Kd1 {[%emt 0:00:01]} Bd6 {[%emt 0:00:03]} 57. Ra6 {[%emt 0:00:04]} Bc5 $2 {[%emt 0:00:03]} (57... Kc3 {mates} 58. Ke2 Bf4 59. Kf3 Kxb3 60. Kxf4 e2 61. Re6 a2 62. Rxe2 a1=Q (62... a1=B 63. Re4 $11) 63. Re4 Qh1 64. Rd4 Kc3 65. Re4 Qh6+ 66. Kg4 Qg6+ 67. Kf4 Qxe4+ 68. Kxe4 b3 69. Kf5 b2 70. Kg6 b1=Q+ (70... b1=B+ 71. Kh6 $11) 71. Kg5 Qf1 72. Kg6 Kd4 73. Kg7 Qf5 74. Kg8 Qd7 75. Kf8 Ke5 76. Kg8 Kf6 77. Kh8 Qg7#) 58. Ke2 $2 {[%emt 0:00:02][%mdl 8192]} (58. Ra5 $11 Kc3 59. Rxc5+ Kxb3 60. Re5) 58... Kc3 {[%emt 0:00:02]} 59. Rc6 {[%emt 0:00:01]} a2 {[%emt 0:00:01]} 60. Rxc5+ {[%emt 0:00:02]} Kb2 {[%emt 0:00:01]} 61. Ra5 {[%emt 0:00:04]} a1=Q {[%emt 0:00:10]} (61... a1=B $2 {is the wrong capture.} 62. Kxe3 Kb1 63. Kd3 $18) 62. Rxa1 {[%emt 0:00:05]} 0-1

[Event "European Women Blitz-ch 2024"]
[Site "Monaco"]
[Date "2025.01.10"]
[Round "2.5"]
[White "Wagner, Dinara"]
[Black "Gvetadze, Sofio"]
[Result "1-0"]
[Annotator "TA"]
[ECO "E74"]
[WhiteElo "2437"]
[BlackElo "2298"]
[PlyCount "89"]
[EventDate "2025.01.06"]
[EventType "swiss"]
[EventCountry "MNC"]
[SourceTitle "playchess.com"]
[Source "ChessBase"]
[SourceQuality "1"]
[TimeControl "180+2"]

{[%evp 20,89,58,43,44,10,58,59,58,59,68,59,60,63,69,37,72,31,70,65,70,70,60,58,58,64,71,82,129,75,308,311,431,34,37,11,15,15,72,87,75,100,104,64,64,56,58,65,83,54,83,38,106,29,69,0,66,75,55,41,71,65,75,34,104,31,162,173,255,220,895,896]} 1. d4 {[%emt 0:00:01]} Nf6 {[%emt 0:00:01]} 2. c4 {[%emt 0:00:01]} c5 {[%emt 0:00:01]} 3. d5 {[%emt 0:00:01]} g6 {[%emt 0:00:01]} 4. Nc3 {[%emt 0:00:02]} Bg7 {[%emt 0:00:02]} 5. Nf3 {[%emt 0:00:03]} O-O {[%emt 0:00:02]} 6. e4 {[%emt 0:00:03]} d6 {[%emt 0:00:01]} 7. h3 {[%emt 0:00:09]} e6 {[%emt 0:00:14]} 8. Be2 {[%emt 0:00:04]} exd5 {[%emt 0:00:01]} 9. exd5 {[%emt 0:00:02]} Na6 {[%emt 0:00:08]} 10. O-O {[%emt 0:00:05]} Nc7 {[%emt 0:00:02]} 11. Bf4 {[%emt 0:00:10]} Re8 {[%emt 0:00:03]} 12. Bd3 {[%emt 0:00:04]} a6 {[%emt 0:00:05]} (12... b5 $1 $11 {should be considered.}) 13. a4 $14 {[%emt 0:00:02]} Rb8 {[%emt 0:00:02][%cal Ob7b5]} 14. a5 {[%emt 0:01:18]} b5 {[%emt 0:00:04] and ...bxc4 should not be overlooked} 15. axb6 {[%emt 0:00:01]} Rxb6 {[%emt 0:00:01]} 16. Qc2 {[%emt 0:00:01]} Nh5 {[%emt 0:00:10]} 17. Bh2 {[%emt 0:00:01]} Nf6 {[%emt 0:00:29]} 18. Rfe1 {[%emt 0:00:02]} Bb7 {[%emt 0:00:13]} 19. Rxe8+ {[%emt 0:00:06]} Ncxe8 {[%emt 0:00:02]} 20. Re1 {[%emt 0:00:08][%cal Ba1e1,Be1e2,Be2e7][%mdl 32]} Bc8 {[%emt 0:00:12][%cal Bb7c8,Bc8d7,Bd7f5][%mdl 32]} 21. Bf4 {[%emt 0:00:03]} Bd7 {[%emt 0:00:04]} 22. Re2 {[%emt 0:00:12]} Qb8 {[%emt 0:00:09]} 23. Ng5 {[%emt 0:00:01]} Rb4 {[%emt 0:00:18] [#]} (23... Nh5 $142 24. Bc1 Be5) 24. Qc1 {[%emt 0:00:16] White is much more active.} (24. Re7 $142 $1) 24... Qc8 $2 {[%emt 0:00:11]} (24... Qd8 $16) 25. Re7 $18 {[%emt 0:00:06]} Bf5 {[%emt 0:00:13]} 26. Bf1 $2 {[%emt 0:00:18]} (26. Bxf5 $18 Qxf5 27. Nxf7) 26... Rb7 $14 {[%emt 0:00:09]} 27. Re1 {[%emt 0:00:09]} h6 {[%emt 0:00:07]} 28. Nf3 {[%emt 0:00:01]} Kh7 {[%emt 0:00:02]} (28... g5 $11 {keeps the balance.} 29. Bh2 Bg6) 29. Nh4 $16 {[%emt 0:00:07]} Bd7 {[%emt 0:00:12]} 30. Bd3 {[%emt 0:00:01]} Qd8 {[%emt 0:00:03] Dodges Re7} 31. Nf3 {[%emt 0:00:02]} (31. Qc2 {is more complex.} Kg8 32. Bxg6 fxg6 33. Qxg6 Bc8 34. Bxh6 Re7 35. Rxe7 Qxe7 36. g4) 31... Qb6 {[%emt 0:00:05]} 32. Re2 {[%emt 0:00:01]} Nh5 {[%emt 0:00:06]} 33. Be3 {[%emt 0:00:08]} Qd8 {[%emt 0:00:01]} 34. Qc2 {[%emt 0:00:07]} Kg8 {[%emt 0:00:04]} 35. Bc1 {[%emt 0:00:03]} Nhf6 {[%emt 0:00:11]} (35... a5 $14) 36. Kh1 {[%emt 0:00:03]} (36. Bd2 $16) 36... Bc8 {[%emt 0:00:05]} 37. Kg1 {[%emt 0:00:01]} (37. Be3 $14) 37... Re7 {[%emt 0:00:02]} (37... Bd7 $1 $11) 38. Qa4 {[%emt 0:00:02]} Rxe2 {[%emt 0:00:01]} 39. Bxe2 {[%emt 0:00:01]} Qe7 {[%emt 0:00:04]} 40. Bd3 {[%emt 0:00:03]} Nh5 {[%emt 0:00:06]} 41. Be3 {[%emt 0:00:01]} f5 {[%emt 0:00:04]} (41... Bxc3 $14 42. bxc3 g5) 42. Qa5 {[%emt 0:00:02]} ({White should try} 42. Ne2 $16) 42... f4 {[%emt 0:00:04]} (42... g5 $14) 43. Bd2 $18 {[%emt 0:00:01]} ({And not} 43. Bxg6 fxe3 44. Bxh5 exf2+ 45. Kxf2 Bd4+ 46. Nxd4 cxd4 47. Bxe8 (47. Ne2 $2 Qh4+ 48. Kf1 Qxh5 $19) 47... Qe3+ (47... dxc3 48. Qxc3 Qxe8 49. Qg3+ Kh7 50. Qxd6 $16) 48. Kf1 Qf4+ (48... Qxe8 49. Nd1 $16) (48... dxc3 49. Qxc3 Qxe8 50. Qg3+ Kf7 51. Qxd6 $11) 49. Ke1 Qg3+ (49... dxc3 50. Qxc3 Qe4+ 51. Kf2 $14) 50. Kf1 Qf4+ 51. Ke1 Qg3+ 52. Kf1 Qf4+ $11) 43... Kh7 {[%emt 0:00:04]} (43... g5 {was called for.} 44. b4 g4 45. hxg4 Bxg4) 44. Qa4 {[%emt 0:00:01]} Qf6 $2 {[%emt 0:00:06]} (44... Bxc3 45. Bxc3 Neg7) 45. Qxe8 {[%emt 0:00:01]} 1-0